bitfinex/quotes_ETHUSD_20250511
["timestamp","ask_amount","ask_price","bid_price","bid_amount"]
[1746931559714,1.32898872,2543.4,2542.0,13.768]
[1746931560406,0.04915037,2543.5,2542.1,8.01975449]
[1746931560571,4.73281064,2543.8,2542.3,8.0]
[1746931560572,0.8016,2543.8,2542.3,8.0]
[1746931560747,4.44719651,2544.1,2542.2,6.37335007]
[1746931560748,0.85074334,2544.4,2542.7,8.0]
[1746931560948,0.85074334,2544.4,2542.8,7.896]
[1746931561246,3.930631,2544.2,2542.8,7.896]
[1746931561411,0.4422033,2544.1,2542.8,7.896]
[1746931561714,0.0491402,2544.1,2542.9,8.0]
[1746931561915,3.93090018,2544.0,2542.9,8.0]
[1746931562160,0.04914021,2543.9,2542.9,8.0]
[1746931562327,3.93059399,2544.2,2542.9,8.0]
[1746931562531,0.04913617,2544.1,2542.9,8.0]
[1746931562932,0.04913599,2544.4,2543.0,0.0197261]
[1746931563265,0.44706066,2544.4,2542.9,8.0]
[1746931563454,0.04913599,2544.4,2542.9,8.0]
[1746931563615,0.04913599,2544.4,2542.8,7.896]
[1746931563616,3.93035696,2544.3,2543.0,7.866]
[1746931563819,3.97877928,2544.8,2543.0,7.866]
[1746931563820,0.049136,2544.2,2543.0,7.866]
[1746931564058,0.049136,2544.7,2543.1,22.17372574]
[1746931564251,0.049136,2544.7,2543.1,22.154]
[1746931564571,0.04912771,2544.8,2543.1,14.154]
[1746931564860,3.93122505,2543.8,2542.8,8.0]
[1746931565058,0.85284299,2543.7,2542.3,5.85]
[1746931565215,0.85284299,2543.7,2542.1,22.018]
[1746931565838,4.78417687,2543.7,2542.2,8.0]
[1746931566022,3.93153916,2543.6,2542.2,8.0]
[1746931566222,0.04915305,2543.5,2542.3,7.855]
[1746931566462,0.04915305,2543.5,2542.3,13.705]
[1746931566619,3.98064752,2543.6,2542.3,13.705]
[1746931566815,3.9317449,2543.4,2541.4,5.85]
[1746931567014,3.93216934,2543.2,2541.7,3.965]
[1746931567237,3.98147721,2543.1,2541.7,7.849]
[1746931567518,3.93236795,2543.0,2541.7,3.965]
[1746931567759,4.80495837,2542.9,2541.7,3.965]
[1746931567936,4.80495837,2542.9,2541.8,8.0]
[1746931568133,3.9327073,2542.8,2541.4,8.2906835]
[1746931568347,0.04916276,2542.7,2541.6,8.0]
[1746931568667,0.04916276,2542.8,2541.6,8.0]
[1746931568861,0.8232,2542.9,2541.6,8.0]
[1746931569264,0.87236061,2543.3,2541.7,8.288]
[1746931569474,0.8232,2543.3,2541.9,0.55]
[1746931569673,6.37335007,2544.5,2542.5,8.0]
[1746931569674,0.87234945,2544.0,2542.5,8.0]
[1746931569965,0.04914366,2543.9,2542.7,8.0]
[1746931570365,0.04914366,2543.9,2541.6,12.22335007]
[1746931570516,3.93179781,2543.4,2541.7,15.733]
[1746931570720,0.04915604,2543.3,2541.8,0.01976581]
[1746931570920,3.98075303,2543.5,2541.8,0.01976581]
[1746931571119,0.4803953,2543.4,2541.8,0.01976581]
[1746931571319,0.04915601,2543.5,2542.0,8.0]
[1746931571563,0.04915601,2543.5,2542.1,0.0197583]
[1746931572464,0.8226,2544.0,2542.4,6.37335007]
[1746931572667,0.04914389,2543.9,2542.4,6.37335007]
[1746931573354,3.98019255,2543.9,2542.4,6.37335007]
[1746931573525,0.48027925,2543.8,2542.4,6.37335007]
[1746931573727,0.04914396,2543.7,2542.4,6.37335007]
[1746931574042,0.04914396,2543.9,2542.4,6.37335007]
[1746931574364,0.8226,2544.0,2542.5,8.01973662]
[1746931574520,0.8226,2544.0,2542.7,8.0]
[1746931574723,0.8226,2544.5,2542.9,8.0]
[1746931574921,0.0491307,2544.8,2543.2,6.92335007]
[1746931575138,0.8226,2544.9,2543.4,0.55]
[1746931575545,0.04911969,2545.1,2543.4,0.55]
[1746931575751,0.8226,2545.3,2543.7,8.0]
[1746931575935,0.8226,2545.3,2544.0,0.55]
[1746931576135,0.04911971,2545.6,2544.2,8.0]
[1746931576329,0.52359168,2545.6,2544.2,8.0]
[1746931576587,0.0491099,2546.2,2544.5,8.55]
[1746931576791,3.9275755,2546.1,2544.5,8.0]
[1746931576950,0.04910393,2546.0,2544.6,0.55]
[1746931577283,3.28363016,2546.3,2544.9,8.0]
[1746931577577,3.28363016,2546.3,2545.1,8.0]
[1746931578279,3.97592832,2546.6,2545.3,8.0]
[1746931578443,0.7522,2546.4,2545.2,14.146]
[1746931578646,0.04910084,2546.3,2545.3,8.01965542]
[1746931578952,0.80129779,2546.8,2545.3,8.0]
[1746931579682,0.80129779,2546.8,2545.4,0.01962393]
[1746931579991,0.7522,2547.0,2542.7,3.925]
[1746931580267,0.7522,2544.1,2542.0,10.06295007]
[1746931580484,3.93117237,2543.8,2542.0,10.06295007]
[1746931580646,0.04914103,2544.0,2542.0,10.06295007]
[1746931580838,0.29135481,2544.3,2542.4,6.37335007]
[1746931581038,0.04914109,2544.2,2542.5,11.919]
[1746931581351,0.0491411,2544.4,2542.5,11.919]
[1746931581539,7.80136053,2544.3,2542.5,11.919]
[1746931581866,0.04914009,2544.2,2542.5,8.0]
[1746931582296,0.04914009,2544.2,2542.6,7.779]
[1746931582639,0.04914009,2544.2,2542.7,8.0]
[1746931582943,0.04914009,2544.2,2542.6,7.779]
[1746931583142,3.97949242,2544.3,2542.7,15.764]
[1746931583343,1.33142384,2544.3,2542.7,15.764]
[1746931583566,0.04913742,2544.3,2542.7,15.764]
[1746931583962,0.04913338,2544.4,2542.7,15.764]
[1746931584343,0.7522,2544.5,2542.9,8.0]
[1746931584569,0.04912886,2544.4,2542.9,8.0]
[1746931584786,3.97943263,2544.4,2542.9,8.0]
[1746931584960,0.47316326,2544.3,2542.9,8.0]
[1746931585146,0.04912886,2544.4,2542.9,8.0]
[1746931585550,3.97937388,2544.4,2542.9,8.0]
[1746931585747,0.04912886,2544.4,2542.9,8.0]
[1746931586275,0.04912886,2544.4,2543.1,8.0]
[1746931587787,0.04913254,2544.8,2543.1,8.0]
[1746931588160,0.04913254,2544.8,2543.2,0.55]
[1746931588360,0.7668,2544.9,2543.2,0.55]
[1746931588551,0.04912325,2544.8,2543.2,0.55]
[1746931591982,0.7668,2545.4,2543.8,8.0]
[1746931592171,0.7668,2545.4,2543.7,6.37335007]
[1746931592172,3.92936512,2545.0,2544.0,8.0]
[1746931592371,0.44206038,2544.9,2543.8,8.0]
[1746931593089,0.04912387,2544.9,2543.8,8.0]
[1746931593285,0.21840685,2544.8,2543.4,8.0]
[1746931593456,3.92989074,2544.6,2543.5,3.87]
[1746931593656,3.93027522,2544.4,2543.0,3.797]
[1746931593991,0.04913719,2544.3,2543.1,8.0]
[1746931594201,4.37241127,2544.3,2543.1,8.0]
[1746931594383,3.93081101,2544.1,2542.9,3.87]
[1746931594579,0.04914414,2544.0,2543.0,8.0]
[1746931594978,0.04914414,2544.0,2542.9,8.0]
[1746931595580,0.04914415,2544.2,2542.9,8.0]
[1746931595784,0.55,2544.3,2542.9,8.0]
[1746931596099,0.04914415,2544.2,2543.0,0.01011808]
[1746931596304,0.7668,2544.7,2543.0,0.01011808]
[1746931596305,0.04913911,2544.6,2543.0,0.01011808]
[1746931596505,0.04913911,2544.6,2543.2,8.0]
[1746931597492,0.04913911,2544.6,2543.4,8.0]
[1746931597800,0.04913911,2544.6,2543.5,0.01009725]
[1746931598158,0.04913911,2544.6,2543.4,8.0]
[1746931598396,3.93058679,2544.2,2543.3,3.871]
[1746931598564,0.44220037,2544.1,2543.3,3.871]
[1746931598761,0.04914167,2544.4,2543.4,8.01011302]
[1746931599020,0.21883205,2544.3,2543.4,8.0]
[1746931599566,0.21883205,2544.3,2543.6,8.0]
[1746931600169,0.04912937,2544.6,2543.6,8.0]
[1746931601092,0.21896792,2544.5,2543.6,8.0]
[1746931601690,0.7668,2544.7,2543.6,8.0]
[1746931601880,0.7668,2544.7,2543.7,0.01008426]
[1746931602081,0.7668,2544.7,2543.6,8.0]
[1746931603200,0.04912551,2544.6,2543.8,8.0]
[1746931603892,0.21924284,2544.5,2543.8,8.0]
[1746931604589,0.04912551,2544.6,2543.8,8.0]
[1746931605499,0.04912551,2544.6,2543.7,3.718]
[1746931605705,0.52369078,2544.6,2543.4,3.695]
[1746931605908,0.21927873,2544.5,2543.5,8.0]
[1746931606085,0.04913266,2544.4,2543.5,8.0]
[1746931606600,0.26840909,2544.5,2543.5,8.0]
[1746931606907,0.21927873,2544.4,2543.5,8.0]
[1746931608219,0.21927873,2544.4,2543.7,8.0]
[1746931608371,0.21927873,2544.4,2543.8,0.01006914]
[1746931608570,0.8247,2544.5,2543.8,0.01006914]
[1746931608799,0.8247,2544.5,2543.7,8.0]
[1746931609017,0.8247,2545.0,2543.8,0.01007937]
[1746931609514,0.22009717,2544.9,2543.7,8.0]
[1746931610112,3.92958892,2544.8,2543.7,8.0]
[1746931610431,0.8247,2544.6,2543.4,3.76]
[1746931610635,0.04913872,2544.5,2543.4,3.76]
[1746931610992,3.97921015,2544.5,2543.4,3.76]
[1746931611313,3.97921015,2544.5,2543.5,0.01010396]
[1746931611489,0.70048819,2544.4,2543.4,3.76]
[1746931611691,0.04913869,2544.3,2542.6,14.143]
[1746931611924,0.04913869,2544.3,2542.7,16.009]
[1746931612408,0.22009717,2544.2,2542.7,16.009]
[1746931613129,0.22009717,2544.2,2542.8,0.01009955]
[1746931613439,0.22009717,2544.4,2542.7,22.38235007]
[1746931613640,0.22009717,2544.4,2542.8,0.01009292]
[1746931613804,0.22009717,2544.4,2542.7,22.38235007]
[1746931613990,0.22009717,2544.3,2542.7,22.38235007]
[1746931614326,0.22009717,2544.3,2542.8,0.010093]
[1746931614492,0.22009717,2544.3,2542.7,22.38235007]
[1746931614920,0.8247,2544.6,2542.7,22.38235007]
[1746931615118,0.8247,2544.6,2542.9,8.55]
[1746931615321,0.8247,2544.6,2543.1,6.37335007]
[1746931615634,0.0491217,2544.5,2543.3,8.0]
[1746931616290,0.2202923,2544.4,2543.3,8.0]
[1746931616492,0.04913282,2544.3,2543.4,3.76]
[1746931616758,0.04913282,2544.3,2543.3,7.421]
[1746931616907,0.91600385,2544.3,2543.3,7.421]
[1746931617309,0.22033987,2544.2,2543.3,7.421]
[1746931617519,0.04913881,2544.1,2543.2,8.0]
[1746931618408,0.04913881,2544.2,2543.2,8.0]
[1746931618733,0.22032701,2544.1,2543.2,8.0]
[1746931619035,0.22032701,2544.1,2543.3,0.01010743]
[1746931619519,0.22032701,2544.1,2543.3,5.86010743]
[1746931620040,0.22032701,2544.1,2543.5,6.37335007]
[1746931620199,0.04912683,2545.1,2543.6,8.01007805]
[1746931620400,0.7592,2545.2,2543.8,8.0]
[1746931620610,0.0491178,2545.1,2544.0,8.0]
[1746931620809,0.52283953,2545.1,2544.0,8.0]
[1746931621236,0.22027058,2545.0,2544.0,8.0]
[1746931621645,3.634,2544.9,2543.8,8.0]
[1746931621820,0.55,2543.7,2541.5,1.178825]
[1746931622027,0.55,2543.7,2540.9,6.37335007]
[1746931622028,0.7592,2543.1,2540.9,6.37335007]
[1746931622366,0.26943653,2543.0,2541.4,8.20431091]
[1746931622522,0.22027058,2543.0,2541.8,0.55]
[1746931622711,0.22027058,2543.0,2541.9,4.034]
[1746931622912,0.22027058,2543.0,2541.7,6.37335007]
[1746931623125,0.7592,2543.1,2541.8,16.003]
[1746931623417,0.7592,2543.1,2541.9,0.56013616]
[1746931623824,0.7592,2543.1,2542.2,8.0]
[1746931625127,0.28987783,2543.6,2542.0,0.29129187]
[1746931625439,0.80835343,2543.6,2542.4,8.0]
[1746931625610,0.04914842,2543.5,2542.6,8.0]
[1746931628926,0.7592,2543.6,2542.7,0.0101302]
[1746931629125,0.7592,2543.6,2542.5,3.97]
[1746931629609,0.7903,2543.3,2541.9,3.98]
[1746931629813,0.0491591,2543.2,2542.0,0.01014801]
[1746931630011,0.0491591,2543.2,2542.0,8.01014801]
[1746931630209,3.98123725,2543.2,2542.0,8.0]
[1746931630449,0.7903,2542.9,2541.9,3.98]
[1746931630748,0.0491598,2542.8,2542.0,8.0]
[1746931631127,0.7903,2542.9,2542.0,8.0]
[1746931632030,0.7903,2543.3,2542.1,0.56014692]
[1746931632348,0.7903,2543.3,2542.0,13.85]
[1746931633853,0.7903,2543.3,2542.1,7.918]
[1746931634562,0.7903,2543.3,2542.2,0.55]
[1746931634723,0.7903,2543.3,2542.3,8.0]
[1746931634921,0.7903,2543.3,2542.4,0.01012281]
[1746931635133,0.7903,2543.3,2542.4,0.56012281]
[1746931635330,0.7903,2543.3,2542.3,22.148]
[1746931635532,0.7903,2543.3,2542.5,8.0]
[1746931636326,1.26249648,2543.3,2542.5,8.0]
[1746931636523,0.7903,2543.3,2542.5,8.0]
[1746931636861,0.7903,2543.3,2542.6,0.01012725]
[1746931637068,0.7903,2543.3,2542.5,8.0]
[1746931637562,0.7903,2543.3,2542.6,0.0101273]
[1746931638325,0.7903,2543.3,2542.6,0.01012431]
[1746931638526,0.7903,2543.3,2542.5,8.0]
[1746931639326,0.7903,2543.3,2542.6,0.01012479]
[1746931640067,0.7903,2543.3,2542.5,8.0]
[1746931640763,0.7903,2543.3,2542.4,8.0]
[1746931641060,0.7903,2543.3,2542.6,3.89]
[1746931642431,0.7903,2543.3,2542.7,0.01012721]
[1746931642631,0.7903,2543.3,2542.7,8.01012721]
[1746931643582,0.7787,2543.8,2542.9,8.0]
[1746931643789,0.04913347,2544.7,2543.2,0.55]
[1746931643947,0.7787,2544.6,2543.4,8.55]
[1746931644150,0.7787,2544.6,2543.5,5.86007419]
[1746931644352,0.7787,2545.1,2543.6,22.697]
[1746931644677,0.7787,2545.1,2543.8,8.55]
[1746931644852,0.7787,2545.1,2544.0,8.0]
[1746931645038,0.7787,2545.1,2544.2,8.0]
[1746931645779,0.04911454,2545.0,2544.2,8.0]
[1746931646272,0.7787,2545.1,2544.3,0.01007167]
[1746931646448,0.7787,2545.1,2544.2,8.0]
[1746931646831,0.7787,2544.4,2542.3,7.712]
[1746931647069,4.70946286,2544.1,2542.3,7.712]
[1746931647370,0.828,2543.9,2542.4,8.0]
[1746931647567,0.04914314,2543.8,2542.4,8.0]
[1746931648157,0.828,2543.9,2542.5,0.55]
[1746931649875,0.828,2543.9,2542.7,0.55]
[1746931650375,0.828,2543.9,2542.6,8.0]
[1746931650592,0.828,2543.6,2542.3,3.841]
[1746931650869,0.828,2543.4,2542.3,3.841]
[1746931651073,0.828,2543.4,2542.4,8.0]
[1746931651477,0.828,2543.4,2542.3,3.841]
[1746931651773,0.04915031,2543.3,2542.4,8.0]
[1746931652139,0.828,2543.4,2542.4,8.0]
[1746931652469,0.828,2543.4,2542.5,0.01013423]
[1746931653062,0.828,2543.4,2542.4,8.0]
[1746931654602,0.828,2543.4,2542.5,0.01011714]
[1746931654983,0.828,2543.4,2542.5,0.01011783]
[1746931655382,0.828,2543.4,2542.5,0.56011783]
[1746931655688,0.04914412,2544.3,2542.8,8.0]
[1746931655689,0.7577,2544.2,2542.8,8.0]
[1746931655876,0.04913998,2544.1,2543.0,8.0]
[1746931656084,0.7577,2544.0,2543.2,8.0]
[1746931656802,0.04913999,2543.9,2543.2,8.0]
[1746931656995,0.7577,2544.0,2543.4,8.0]
[1746931657172,0.04914,2543.9,2543.4,8.0]
[1746931657373,3.93115781,2543.8,2543.1,3.841]
[1746931657574,1.25567251,2543.7,2543.2,8.0]
[1746931657777,0.8085,2543.7,2543.3,0.0101164]
[1746931658004,0.8085,2543.7,2543.2,8.0]
[1746931662684,0.04914226,2543.6,2543.1,3.841]
[1746931664422,0.04914722,2543.6,2543.1,3.841]
[1746931666599,0.8085,2543.7,2543.2,0.01012438]
[1746931666913,0.8085,2543.7,2543.2,8.01012438]
[1746931667733,0.8248,2544.1,2543.5,8.0]
[1746931667939,0.8248,2544.1,2543.7,8.0]
[1746931668123,0.8248,2544.1,2543.8,3.71709033]
[1746931669903,0.8248,2544.1,2543.5,8.0]
[1746931671107,0.04913462,2544.0,2543.5,8.0]
[1746931671331,0.52960345,2544.0,2543.5,8.0]
[1746931671655,0.7721,2543.7,2543.0,3.67]
[1746931671854,3.98069947,2543.6,2543.0,3.67]
[1746931672325,0.04914914,2543.6,2543.0,3.67]
[1746931673912,0.7826,2543.3,2542.3,14.145]
[1746931674118,0.7826,2543.3,2542.4,15.36313684]
[1746931674319,0.7826,2543.3,2542.4,15.55760006]
[1746931675255,0.04914953,2543.7,2542.4,15.55760006]
[1746931675256,0.83174953,2543.7,2542.4,15.55760006]
[1746931675442,0.83174953,2543.7,2542.5,0.01012344]
[1746931675910,0.7826,2543.7,2542.5,0.56012344]
[1746931676119,0.7826,2543.7,2542.8,8.0]
[1746931676430,0.7826,2543.7,2542.9,0.01011272]
[1746931676816,0.7826,2543.7,2542.8,8.0]
[1746931679115,0.8132,2544.1,2543.1,4.29119876]
[1746931679333,0.8132,2544.1,2543.5,4.29119876]
[1746931679545,3.92919787,2545.1,2543.6,8.0]
[1746931679546,0.8132,2544.6,2543.6,8.0]
[1746931679867,0.8132,2544.6,2543.7,0.01007781]
[1746931680466,0.8132,2544.6,2543.6,13.85]
[1746931680681,0.8132,2544.6,2543.6,27.996]
[1746931681278,0.8132,2544.6,2544.0,8.0]
[1746931681478,0.8132,2544.6,2544.2,8.0]
[1746931682477,0.04911981,2545.0,2544.3,0.01007433]
[1746931682657,3.4502579,2545.1,2544.4,8.0]
[1746931683181,0.8132,2545.4,2544.5,0.55]
[1746931683368,0.8132,2545.4,2544.6,8.0]
[1746931684175,0.8132,2544.0,2542.5,3.656]
[1746931684502,0.04914077,2543.9,2542.6,8.0]
[1746931684837,0.04914077,2543.9,2542.8,8.0]
[1746931685034,0.04914077,2543.9,2542.7,3.65]
[1746931685344,0.04914077,2543.9,2542.8,8.0]
[1746931685545,0.04914077,2543.9,2542.7,3.65]
[1746931686162,0.04914077,2543.9,2542.8,11.635]
[1746931688963,0.8132,2544.0,2543.1,8.0]
[1746931689387,0.8132,2544.0,2542.7,8.0]
[1746931689591,0.8132,2544.0,2542.9,8.0]
[1746931691190,0.8132,2544.0,2543.0,0.0101031]
[1746931691557,0.8132,2544.0,2543.1,8.0]
[1746931691852,0.8132,2544.0,2543.2,0.56010305]
[1746931692064,0.8132,2544.0,2543.2,0.55]
[1746931692996,0.8132,2544.0,2540.9,0.2057]
[1746931692997,4.70230872,2543.1,2540.9,0.2057]
[1746931693290,3.93344063,2542.4,2541.3,0.2924497]
[1746931693476,0.81927363,2542.3,2541.2,3.737]
[1746931693680,0.81927363,2542.3,2541.2,3.93065511]
[1746931693883,0.7701,2542.2,2541.2,3.93065511]
[1746931694087,0.7701,2542.2,2541.3,8.0]
[1746931695186,0.7701,2542.2,2541.2,3.737]
[1746931695382,0.04917416,2542.1,2541.2,3.737]
[1746931695586,0.04917416,2542.1,2541.3,8.0]
[1746931695587,0.7701,2542.0,2541.3,8.0]
[1746931695896,0.0491792,2541.9,2541.2,3.737]
[1746931696096,0.7701,2542.0,2541.3,8.0101882]
[1746931696391,0.7701,2542.0,2541.3,8.0]
[1746931697008,0.7701,2542.0,2541.4,7.43]
[1746931697183,0.7701,2542.0,2541.5,8.0]
[1746931698900,0.04917253,2542.6,2541.5,8.0]
[1746931699206,0.8185,2542.5,2541.5,8.0]
[1746931699776,0.8185,2542.5,2541.6,0.01015961]
[1746931699957,0.8185,2542.5,2541.6,5.85]
[1746931700294,0.8185,2542.5,2541.7,8.0]
[1746931700884,0.04916319,2543.4,2541.7,8.0]
[1746931700885,0.8185,2543.3,2541.7,13.85]
[1746931701093,0.04916009,2543.2,2541.7,13.85]
[1746931701267,0.8185,2543.1,2541.7,13.85]
[1746931701466,0.0491601,2543.0,2541.7,13.85]
[1746931704503,0.7696,2542.9,2541.7,13.85]
[1746931706813,0.04916024,2542.8,2541.7,13.85]
[1746931707004,0.7696,2542.7,2541.9,8.0]
[1746931708809,0.7696,2542.7,2542.1,8.0]
[1746931710088,0.7696,2543.1,2542.5,8.0]
[1746931710430,0.7696,2543.1,2542.7,8.0]
[1746931711297,0.7696,2543.1,2542.7,8.01014019]
[1746931711609,0.7696,2543.1,2542.8,7.173]
[1746931711823,0.7696,2543.1,2542.7,8.0]
[1746931712004,0.049156,2543.0,2542.8,7.172]
[1746931712186,0.7696,2543.1,2542.9,3.593]
[1746931712391,0.049158,2543.0,2542.9,3.593]
[1746931712787,0.7696,2543.1,2542.9,3.593]
[1746931713524,0.7696,2543.1,2542.6,14.149]
[1746931713725,0.8215,2542.8,2542.2,3.593]
[1746931713929,0.8215,2542.6,2542.1,3.593]
[1746931714136,0.8215,2539.6,2538.8,8.83119016]
[1746931714284,0.8215,2539.2,2538.8,8.83119016]
[1746931714493,0.8215,2539.0,2538.8,8.83119016]
[1746931714693,0.04924066,2538.9,2538.8,8.83119016]
[1746931714892,0.8215,2539.0,2538.8,8.83119016]
[1746931715231,0.8215,2539.9,2538.9,8.0]
[1746931715395,0.04922809,2539.8,2538.9,8.0]
[1746931715595,0.8215,2539.9,2538.9,8.0]
[1746931715797,0.04922592,2539.8,2538.8,16.97838892]
[1746931716140,0.8215,2539.9,2539.2,4.29119876]
[1746931716305,0.8215,2540.4,2539.6,4.29119876]
[1746931716511,0.8215,2540.4,2539.7,15.744]
[1746931716893,0.04920473,2540.3,2539.6,3.857]
[1746931717900,0.5299031,2540.3,2539.6,3.857]
[1746931718730,0.04920473,2540.3,2539.6,3.857]
[1746931719233,0.772,2540.2,2539.6,3.857]
[1746931719416,0.04922013,2540.1,2539.6,3.857]
[1746931720013,0.772,2540.2,2539.6,3.857]
[1746931720208,0.04921543,2540.1,2539.6,3.857]
[1746931720411,0.772,2540.2,2539.7,8.0]
[1746931720611,0.04920966,2541.1,2539.9,8.0]
[1746931720815,0.772,2541.5,2540.0,7.758]
[1746931721019,0.772,2541.0,2540.1,8.0]
[1746931721214,0.04920353,2540.9,2540.1,8.0]
[1746931722226,0.772,2541.0,2540.1,8.0]
[1746931722936,0.04919308,2540.9,2539.7,8.0]
[1746931723137,0.04919308,2540.9,2539.7,11.905]
[1746931723436,0.5248552,2540.9,2539.7,11.905]
[1746931723939,0.04919308,2540.9,2539.7,11.905]
[1746931724111,0.7702,2540.8,2539.7,8.0]
[1746931724440,0.04920458,2540.7,2539.7,3.89]
[1746931724818,0.7702,2540.8,2539.7,3.89]
[1746931725127,0.7702,2540.8,2539.7,11.89]
[1746931726097,0.04920192,2540.7,2539.7,11.89]
[1746931726918,0.04920192,2540.7,2539.8,8.0]
[1746931727116,0.04920195,2540.7,2539.7,8.0]
[1746931727333,0.8015,2540.6,2539.8,3.862]
[1746931727505,0.04920663,2540.5,2539.8,3.862]
[1746931727844,4.73812851,2540.3,2539.3,14.155]
[1746931728015,0.52303031,2540.2,2539.4,8.0]
[1746931728347,0.8015,2540.1,2539.3,14.155]
[1746931728642,0.8015,2539.7,2539.1,3.859]
[1746931728941,0.04922792,2539.6,2539.1,3.859]
[1746931730389,0.8015,2539.5,2538.7,1.6323]
[1746931730550,0.04923762,2539.4,2538.7,1.6323]
[1746931730961,0.8015,2539.3,2538.7,1.6323]
[1746931731180,0.04923472,2539.2,2538.7,1.6323]
[1746931731858,0.8015,2539.1,2538.7,1.6323]
[1746931732385,0.671386,2539.1,2538.7,1.6323]
[1746931733844,3.81,2539.4,2538.7,1.6323]
[1746931734074,3.86,2539.2,2538.7,0.799]
[1746931734345,3.93886875,2538.8,2538.7,0.799]
[1746931734545,0.2951749,2538.8,2538.7,0.799]
[1746931734784,3.98811337,2538.8,2538.7,0.799]
[1746931735285,5.33961337,2538.8,2538.7,0.799]
[1746931735487,0.8015,2538.3,2537.4,3.86]
[1746931735693,0.0492571,2538.2,2537.3,8.0]
[1746931735844,0.0492571,2538.2,2537.2,4.05845982]
[1746931736048,0.0492571,2538.2,2537.2,3.86]
[1746931736269,0.0492571,2538.2,2535.7,0.2055585]
[1746931736270,3.94039106,2537.9,2536.4,3.86]
[1746931736479,0.8015,2537.7,2536.4,7.714]
[1746931736647,0.04926939,2537.6,2536.5,8.0]
[1746931736982,0.8015,2538.2,2536.7,0.8086]
[1746931737147,0.04925562,2538.1,2536.7,0.8086]
[1746931738087,3.9402861,2537.9,2536.5,7.726]
[1746931738385,0.823,2537.7,2536.5,3.861]
[1746931738591,0.55,2538.1,2536.5,3.861]
[1746931738592,0.87227549,2537.6,2536.5,3.861]
[1746931738744,0.823,2537.5,2536.5,3.861]
[1746931738948,0.823,2537.3,2536.5,3.861]
[1746931739252,0.0492764,2537.2,2536.5,3.861]
[1746931739716,0.0492764,2537.2,2535.0,1.96473983]
[1746931739717,0.823,2537.1,2535.3,0.7754]
[1746931739884,0.823,2536.6,2535.3,0.19980383]
[1746931740212,0.823,2536.2,2534.8,0.20463298]
[1746931740415,0.823,2536.2,2534.6,0.7754]
[1746931740416,0.823,2536.0,2534.6,0.7754]
[1746931740618,0.823,2536.3,2535.2,6.38517633]
[1746931740784,0.823,2536.3,2535.3,7.74]
[1746931741129,0.823,2536.3,2535.4,8.0]
[1746931741289,0.823,2536.7,2535.7,8.0]
[1746931741706,0.049278,2537.5,2535.7,8.0]
[1746931741887,0.823,2537.4,2535.7,8.0]
[1746931742083,0.823,2537.2,2535.7,8.0]
[1746931742302,0.04928315,2537.1,2535.7,8.0]
[1746931743201,0.04928315,2537.1,2535.5,0.7754]
[1746931743424,0.04928315,2537.1,2535.6,0.55]
[1746931743628,0.04928315,2537.1,2535.8,6.38517633]
[1746931743833,0.823,2537.2,2536.2,0.7956]
[1746931744001,0.823,2537.2,2536.5,8.0]
[1746931744202,0.7857,2537.7,2536.9,8.0]
[1746931745858,0.7857,2537.7,2536.2,0.7956]
[1746931746040,0.7857,2537.7,2536.5,4.31249685]
[1746931746351,0.04926114,2537.6,2536.2,8.7956]
[1746931746556,0.7857,2537.5,2536.2,9.09802673]
[1746931746738,0.04927023,2537.4,2536.2,8.7956]
[1746931747144,0.04927023,2537.4,2536.2,8.0]
[1746931747540,0.04927023,2537.4,2536.1,11.84]
[1746931748057,0.04927023,2537.4,2536.5,8.0]
[1746931748217,0.7857,2537.5,2536.6,0.7616]
[1746931748822,3.94205554,2536.8,2535.4,0.7616]
[1746931749057,0.8293,2536.6,2535.3,0.29270381]
[1746931749359,3.94407705,2535.5,2534.2,0.7616]
[1746931749688,0.8293,2535.3,2533.7,0.29388538]
[1746931749823,0.04931535,2535.2,2533.9,4.31249685]
[1746931750018,0.8293,2535.3,2533.7,0.29388538]
[1746931750019,0.8293,2535.3,2534.4,8.0]
[1746931750246,0.8293,2535.9,2534.8,8.0]
[1746931750449,0.8293,2536.5,2535.1,5.07409685]
[1746931750654,0.04928969,2536.4,2535.2,8.0]
[1746931750917,0.04928969,2536.4,2535.0,8.0]
[1746931751155,0.04928969,2536.4,2535.0,12.61350117]
[1746931751517,0.04928969,2536.4,2534.9,12.6406]
[1746931752742,0.04928969,2536.4,2535.3,0.55]
[1746931752943,0.8293,2536.5,2535.3,0.55]
[1746931753253,0.8293,2536.5,2535.0,0.55]
[1746931753454,0.8293,2536.5,2535.1,3.858]
[1746931753750,0.8293,2536.3,2535.1,3.858]
[1746931753953,0.8293,2536.1,2533.9,0.7616]
[1746931754153,0.8293,2535.3,2533.9,0.7616]
[1746931754363,0.8293,2535.1,2532.1,5.85]
[1746931754663,4.31249685,2534.7,2532.8,0.7616]
[1746931754895,0.8293,2534.4,2532.5,4.50928321]
[1746931755080,0.87864235,2534.3,2532.9,4.31249685]
[1746931755270,0.87864235,2534.3,2533.0,3.885]
[1746931755467,0.87864235,2534.3,2533.2,8.0]
[1746931755785,0.87864235,2534.3,2533.1,3.859]
[1746931755998,0.8293,2534.7,2533.6,6.4185073]
[1746931756186,4.77308273,2535.7,2533.8,0.7616]
[1746931756375,0.8293,2535.5,2534.0,8.0]
[1746931756567,0.04931189,2535.4,2534.0,8.0]